bitfinex/quotes_ETHUSD_20240819
["timestamp","ask_amount","ask_price","bid_price","bid_amount"]
[1724089321467,3.81778,2619.4,2619.0,0.04059115]
[1724089321874,3.81739,2619.6,2619.0,3.85883115]
[1724089321875,7.63484,2619.6,2619.0,3.85883115]
[1724089322227,3.81735,2619.7,2619.1,3.81809]
[1724089322360,3.81735,2619.7,2619.0,3.85882115]
[1724089322560,3.81753,2619.5,2619.0,3.8182307]
[1724089322878,3.81667,2620.1,2619.0,3.8182307]
[1724089322879,9.05036,2620.3,2619.7,3.81713]
[1724089323078,9.05036,2620.3,2619.7,7.63426]
[1724089323310,3.81601,2620.6,2619.9,3.81691]
[1724089323311,7.63204,2620.6,2619.9,3.81691]
[1724089323605,7.63204,2620.6,2619.9,3.81686]
[1724089323606,3.81606,2620.5,2619.9,3.81686]
[1724089323809,3.81606,2620.5,2620.0,0.03965326]
[1724089323960,3.81623,2620.4,2620.0,0.03965326]
[1724089324163,3.81601,2620.6,2619.6,2.4041]
[1724089324393,5.234,2620.7,2620.2,3.81646]
[1724089324616,3.81601,2620.6,2620.0,3.81672]
[1724089324961,4.61038729,2621.0,2620.3,2.4041]
[1724089325187,2.4662,2621.5,2620.4,3.8161]
[1724089325188,1.98736823,2621.3,2620.4,3.8161]
[1724089325409,3.81522,2621.1,2620.6,3.8159]
[1724089325712,3.81557,2620.9,2620.5,0.03874804]
[1724089325927,5.234,2621.1,2619.5,2.4041]
[1724089325928,2.4662,2621.0,2619.5,2.4041]
[1724089326131,14.05796094,2620.7,2620.6,0.03874804]
[1724089326419,14.05796094,2620.7,2619.6,3.81724]
[1724089326420,3.81645,2620.3,2619.6,3.81724]
[1724089326580,3.81615,2620.5,2619.8,3.81706]
[1724089326581,4.61209573,2620.5,2619.8,3.81706]
[1724089327117,9.84579573,2620.7,2620.2,3.81648]
[1724089327271,4.61158573,2620.8,2620.2,3.81641]
[1724089327467,0.79594573,2620.8,2620.3,7.63262]
[1724089327813,3.81564,2620.8,2620.3,3.81627]
[1724089328015,4.61158573,2620.8,2620.1,6.1626]
[1724089328348,4.61158573,2620.8,2619.7,3.81713]
[1724089328349,3.81621,2620.4,2619.7,3.81713]
[1724089328523,3.81621,2620.4,2619.6,2.346]
[1724089328524,3.81598,2620.6,2620.1,3.81664]
[1724089328812,5.234,2620.7,2620.1,3.81664]
[1724089329220,3.81592,2620.6,2620.1,3.81664]
[1724089329366,3.81607,2620.5,2620.0,3.8167]
[1724089329566,3.81607,2620.5,2619.9,3.81688]
[1724089329567,3.81605,2620.6,2619.9,3.81686]
[1724089330011,3.81607,2620.5,2619.9,3.81685]
[1724089330514,0.79594573,2620.7,2620.2,3.81646]
[1724089330821,0.79594573,2620.8,2620.2,3.81646]
[1724089330982,4.61160573,2620.8,2620.2,3.81641]
[1724089331188,0.79594573,2620.8,2620.3,3.81624]
[1724089331719,0.79594573,2620.8,2620.3,4.822035]
[1724089331924,1.19391859,2621.0,2620.5,3.81598]
[1724089331925,0.79594573,2620.9,2620.5,3.81598]
[1724089332076,0.79594573,2621.0,2620.5,3.81598]
[1724089332615,4.61128573,2621.0,2620.5,3.81598]
[1724089332786,3.81549,2620.9,2620.4,3.8162]
[1724089332966,3.81549,2620.9,2620.3,1.005685]
[1724089332967,3.81563,2620.8,2620.2,6.24057]
[1724089333290,3.816,2620.6,2620.0,3.81665]
[1724089333495,3.816,2620.6,2619.7,2.3149]
[1724089333496,3.81621,2620.4,2620.3,0.03860256]
[1724089333667,3.81621,2620.4,2619.8,3.81698]
[1724089333871,6.02994573,2620.6,2619.7,2.3149]
[1724089333872,6.02994573,2620.6,2620.3,0.03860256]
[1724089334073,4.61186573,2620.6,2620.0,3.81669]
[1724089334272,4.61171573,2620.7,2620.4,0.03860256]
[1724089334518,0.79594573,2620.7,2620.4,3.81619]
[1724089334737,0.79594573,2620.9,2620.5,0.03758386]
[1724089335019,9.84529573,2621.0,2620.5,0.03758386]
[1724089335333,4.61129573,2621.0,2620.5,1.03608225]
[1724089335624,4.61129573,2621.0,2620.5,0.03758386]
[1724089335789,3.81553,2620.9,2620.5,0.03758386]
[1724089336368,3.8157,2620.8,2620.5,0.03758386]
[1724089336577,4.61147573,2620.9,2620.3,6.13111]
[1724089336815,3.81553,2620.9,2620.4,3.85358106]
[1724089337026,0.79594573,2621.0,2620.5,4.81439911]
[1724089337226,1.58989458,2621.2,2620.5,4.81439911]
[1724089337227,0.79594573,2621.2,2620.9,3.81542]
[1724089337401,1.58989458,2621.4,2620.9,3.81542]
[1724089337402,4.61073573,2621.4,2620.9,3.81542]
[1724089337570,3.8149,2621.3,2621.0,0.0373246]
[1724089337779,0.79594573,2621.3,2620.9,3.81537]
[1724089337971,0.79594573,2621.4,2621.0,0.4188616]
[1724089338203,3.81492,2621.3,2621.0,0.4188616]
[1724089338400,4.61086573,2621.3,2621.0,0.0373246]
[1724089338628,4.61086573,2621.3,2620.7,3.81577]
[1724089338629,3.81492,2621.3,2620.7,3.81577]
[1724089338789,3.81492,2621.3,2621.1,0.03719816]
[1724089339306,3.81492,2621.3,2621.2,0.03719816]
[1724089339524,3.81492,2621.3,2620.8,3.81561]
[1724089339670,3.81492,2621.3,2621.2,0.03714759]
[1724089339874,3.81492,2621.3,2620.8,4.578761]
[1724089340087,4.61070573,2621.4,2621.2,0.03714759]
[1724089340327,4.61057573,2621.5,2621.0,3.81526]
[1724089340633,3.81475,2621.4,2621.0,0.8393931]
[1724089340791,3.8149,2621.3,2621.0,0.8393931]
[1724089341129,3.8149,2621.3,2621.1,0.03714759]
[1724089341130,8.82399859,2621.2,2621.1,0.03714759]
[1724089341270,9.37226619,2621.2,2621.1,0.03714759]
[1724089341474,3.81535,2621.0,2620.5,3.81602]
[1724089341717,0.7947571,2621.1,2620.6,3.81586]
[1724089341925,4.6100071,2621.1,2620.5,8.245042]
[1724089342276,3.81525,2621.1,2620.5,4.429062]
[1724089342778,4.6097971,2621.2,2620.5,4.429062]
[1724089343173,4.6097971,2621.2,2620.7,3.81576]
[1724089343438,3.81504,2621.2,2620.8,0.381576]
[1724089344169,0.7947571,2621.3,2620.7,3.81576]
[1724089344315,0.7947571,2621.3,2620.8,3.81555]
[1724089344502,3.81493,2621.3,2620.8,3.81555]
[1724089344679,3.81505,2621.2,2620.7,3.81576]
[1724089344880,3.81521,2621.1,2620.5,0.613092]
[1724089345079,3.81593,2620.6,2619.9,3.81684]
[1724089345311,5.234,2620.6,2619.7,6.16262]
[1724089345629,3.81651,2620.2,2619.7,6.16262]
[1724089346223,3.81638,2620.3,2619.7,6.16262]
[1724089346425,3.81638,2620.3,2619.7,6.16272]
[1724089346625,3.81638,2620.3,2619.8,4.433352]
[1724089346828,3.81651,2620.2,2619.8,0.616272]
[1724089347493,3.81637,2620.3,2619.8,4.433342]
[1724089347692,3.81637,2620.3,2619.8,0.616272]
[1724089348021,7.63292,2620.3,2619.8,0.616272]
[1724089348249,7.63292,2620.3,2619.4,2.4366]
[1724089348250,3.81709,2619.8,2619.4,2.4366]
[1724089348383,3.81709,2619.8,2619.1,3.81799]
[1724089348583,3.81753,2619.5,2619.0,7e-07]
[1724089348783,3.8174,2619.6,2619.0,7e-07]
[1724089349035,3.81768,2619.4,2619.0,7e-07]
[1724089349234,3.81768,2619.4,2619.0,0.62548677]
[1724089349600,7.63487,2619.6,2619.0,4.44370677]
[1724089349906,3.8174,2619.6,2619.0,0.62548677]
[1724089350117,7.63488,2619.6,2619.0,0.62548677]
[1724089350311,3.8174,2619.6,2619.0,0.62548677]
[1724089350846,3.81777,2619.4,2619.0,7e-07]
[1724089351132,0.7947571,2619.7,2619.0,7e-07]
[1724089351133,3.81743,2619.6,2619.0,7e-07]
[1724089351428,3.81743,2619.6,2619.0,3.8181207]
[1724089351607,3.81743,2619.6,2619.1,0.03459473]
[1724089351838,3.81725,2619.7,2619.1,3.85267473]
[1724089352150,3.81693,2619.9,2619.3,3.81772]
[1724089352674,3.81693,2619.9,2619.4,0.03459473]
[1724089353014,10.7851871,2620.1,2619.4,3.85223473]
[1724089353220,6.9684271,2620.1,2619.4,4.8601072]
[1724089353476,6.9684271,2620.1,2619.4,1.0424672]
[1724089353477,3.81712,2619.8,2619.4,1.0424672]
[1724089353621,3.81702,2619.9,2619.4,1.0424672]
[1724089353826,3.81702,2619.9,2619.4,4.8601172]
[1724089354668,3.81702,2619.9,2619.4,1.0424672]
[1724089354864,3.81724,2619.7,2619.4,0.03459473]
[1724089355067,3.81724,2619.7,2619.2,6.22644]
[1724089355267,3.81724,2619.7,2619.5,0.03459473]
[1724089355433,3.81724,2619.7,2619.2,6.22644]
[1724089355636,3.81724,2619.7,2619.6,0.03459473]
[1724089355860,3.81724,2619.7,2619.2,7.26908128]
[1724089356075,3.81712,2619.8,2619.6,0.03459473]
[1724089356226,3.81712,2619.8,2619.2,7.26908128]
[1724089356421,3.81712,2619.8,2619.3,0.03459473]
[1724089356666,3.81702,2619.9,2619.0,7e-07]
[1724089356667,3.81724,2619.7,2619.0,7e-07]
[1724089356979,3.81768,2619.4,2619.0,7e-07]
[1724089357281,3.8181,2619.1,2619.0,7e-07]
[1724089357573,7.6362,2619.1,2619.0,7e-07]
[1724089358335,8.4309571,2619.1,2619.0,7e-07]
[1724089358655,10.33147498,2619.1,2619.0,7e-07]
[1724089358977,9.93497958,2619.1,2619.0,7e-07]
[1724089359216,4.61366079,2619.2,2619.0,7e-07]
[1724089359382,3.8181,2619.1,2619.0,7e-07]
[1724089359751,8.43189079,2619.1,2619.0,7e-07]
[1724089360480,11.4543,2619.1,2619.0,7e-07]
[1724089360773,8.43200267,2619.1,2619.0,7e-07]
[1724089360980,10.71337853,2619.1,2619.0,7e-07]
[1724089361281,13.88929234,2619.1,2619.0,7e-07]
[1724089361484,18.36059957,2619.1,2619.0,7e-07]
[1724089361648,21.36059957,2619.1,2619.0,7e-07]
[1724089361980,23.18919234,2619.1,2619.0,7e-07]
[1724089362487,6.30082,2618.5,2617.5,2.2693]
[1724089362781,3.81973,2618.0,2617.6,0.22693]
[1724089363114,3.82058,2617.5,2616.5,0.06633349]
[1724089363326,3.82082,2617.3,2616.8,2.2693]
[1724089363599,3.82075,2617.3,2616.8,2.2693]
[1724089363946,3.8205,2617.5,2616.8,2.2693]
[1724089363947,3.8206,2617.4,2616.8,6.09067]
[1724089364151,3.8205,2617.5,2616.9,0.991213]
[1724089364358,3.82066,2617.4,2616.9,0.991213]
[1724089365263,3.82027,2617.7,2616.9,0.991213]
[1724089365593,3.82061,2617.4,2616.8,3.82136]
[1724089365970,3.82031,2617.6,2616.8,3.8214]
[1724089366306,3.82051,2617.5,2616.9,3.82131]
[1724089366507,3.82046,2617.5,2616.9,0.382131]
[1724089366673,3.82003,2617.8,2616.5,3.82189]
[1724089366921,3.82081,2617.3,2616.7,3.82151]
[1724089367140,0.55,2617.7,2616.6,3.8216]
[1724089367141,3.82102,2617.1,2616.6,3.8216]
[1724089367314,3.82102,2617.1,2616.4,10.1407607]
[1724089367534,0.55,2617.7,2616.4,6.3188007]
[1724089367736,0.55,2617.7,2616.4,0.1282407]
[1724089367737,2.4341,2617.3,2616.4,0.1282407]
[1724089368042,3.82136,2616.9,2616.4,0.1282407]
[1724089368247,3.82148,2616.8,2616.4,0.1282407]
[1724089368607,3.82148,2616.8,2616.5,0.0393331]
[1724089368867,7.64305,2616.8,2616.5,0.0393331]
[1724089369153,3.82148,2616.8,2616.5,0.0393331]
[1724089369445,3.82175,2616.6,2616.5,0.0393331]
[1724089369864,3.82175,2616.6,2616.4,0.1282407]
[1724089370007,7.64378,2616.5,2616.4,0.1282407]
[1724089370207,3.82189,2616.5,2616.4,0.1282407]
[1724089370952,6.22645,2616.8,2616.4,0.1282407]
[1724089371447,3.82125,2617.0,2616.4,3.9502707]
[1724089371676,3.82133,2616.9,2616.4,0.1282407]
[1724089371865,7.64304,2616.8,2616.4,0.1282407]
[1724089372055,3.82125,2617.0,2616.4,0.1282407]
[1724089372258,3.82068,2617.4,2616.7,3.82153]
[1724089372470,3.82059,2617.4,2616.8,3.82137]
[1724089372672,3.82091,2617.2,2616.7,3.82158]
[1724089373257,3.8206,2617.4,2616.9,3.8213]
[1724089373462,3.8206,2617.4,2616.7,3.82158]
[1724089373657,3.8206,2617.4,2616.9,3.8213]
[1724089373997,2.2768,2617.8,2617.4,3.82044]
[1724089374198,3.82031,2617.6,2617.1,3.82095]
[1724089374437,3.82044,2617.5,2617.0,3.82116]
[1724089374688,6.09681,2617.8,2616.8,3.82141]
[1724089374923,3.82043,2617.5,2616.7,0.382158]
[1724089375069,3.81971,2618.0,2617.3,3.82063]
[1724089375392,3.81971,2618.0,2617.4,3.82044]
[1724089375554,3.8195,2618.2,2617.4,3.82044]
[1724089375555,3.81952,2618.2,2617.4,3.82044]
[1724089375903,3.8195,2618.2,2617.6,3.82027]
[1724089376101,3.81992,2617.9,2617.4,7.64097]
[1724089376250,3.81965,2618.1,2617.5,3.82032]
[1724089376453,3.81971,2618.0,2617.4,3.82047]
[1724089376741,3.81965,2618.1,2617.5,3.82037]
[1724089376965,3.81965,2618.1,2617.5,7.64066]
[1724089377170,3.81971,2618.0,2617.3,3.82063]
[1724089377396,3.81971,2618.0,2617.3,3.8206]
[1724089377612,3.81971,2618.0,2617.3,4.20266]
[1724089377915,3.82045,2617.5,2616.4,0.1282407]
[1724089378083,3.82074,2617.3,2616.7,3.82154]
[1724089378285,2.3342,2617.4,2616.7,3.82153]
[1724089378683,9.97798,2616.5,2616.4,0.1282407]
[1724089378905,11.525778,2616.5,2616.4,0.1282407]
[1724089379175,16.759778,2616.5,2616.4,0.1282407]
[1724089379913,20.581668,2616.5,2616.4,0.1282407]
[1724089380214,16.759778,2616.5,2616.4,0.1282407]
[1724089380368,20.581668,2616.5,2616.4,0.1282407]
[1724089381315,23.59404618,2616.5,2616.4,0.1282407]
[1724089381652,27.41593618,2616.5,2616.4,0.1282407]
[1724089382198,27.41593618,2616.5,2616.4,7e-07]
[1724089382531,3.82295,2615.8,2614.9,3.82415]
[1724089382733,3.82295,2615.8,2615.3,3.82364]
[1724089382901,6.31843,2616.0,2615.3,3.82364]
[1724089383103,6.82243,2616.2,2615.5,3.82323]
[1724089383300,3.82264,2616.0,2615.5,3.82323]
[1724089384040,6.82242,2616.2,2615.3,3.82358]
[1724089384041,3.0,2616.2,2615.3,3.82358]
[1724089384237,3.0,2616.2,2615.1,3.82384]
[1724089384238,3.82308,2615.7,2615.1,7.64768]
[1724089384401,3.82308,2615.7,2615.2,3.82375]
[1724089384597,3.82308,2615.7,2615.1,3.82384]
[1724089384598,3.82281,2615.9,2615.3,3.82363]
[1724089384793,3.82263,2616.0,2615.3,3.82358]
[1724089385040,3.01237818,2616.3,2615.4,0.03503669]
[1724089385242,3.82272,2616.0,2615.4,0.03503669]
[1724089385456,3.82256,2616.1,2615.6,3.82313]
[1724089385619,3.82263,2616.0,2615.5,3.82335]
[1724089385795,3.82263,2616.0,2615.7,0.03503669]
[1724089386000,3.82263,2616.0,2615.4,3.82337]
[1724089386199,3.82263,2616.0,2615.8,0.03503669]
[1724089386428,4.37243,2616.2,2615.6,3.82313]
[1724089386749,3.82242,2616.2,2615.6,3.82313]
[1724089386953,3.82242,2616.2,2615.7,0.03776021]
[1724089387169,6.31784,2616.4,2615.8,3.82277]
[1724089387170,3.82214,2616.4,2615.8,3.82277]
[1724089387296,3.82214,2616.4,2615.7,0.03776021]
[1724089387496,3.82214,2616.4,2615.3,6.10991]
[1724089387497,3.82272,2616.0,2615.3,6.10991]
[1724089387812,3.82272,2616.0,2615.8,0.03770316]
[1724089388015,3.82272,2616.0,2615.3,3.82357]
[1724089388353,3.82272,2616.0,2615.0,3.82401]
[1724089388354,3.8234,2615.5,2615.0,3.82401]
[1724089388649,3.82175,2616.6,2616.0,3.82257]
[1724089388815,3.82174,2616.7,2616.0,3.8225]
[1724089389020,3.82203,2616.5,2616.1,0.03766513]
[1724089389350,3.82213,2616.4,2615.6,3.8231]
[1724089389506,3.82219,2616.3,2616.2,0.03766513]
[1724089389701,3.82166,2616.7,2615.5,6.10961]
[1724089389702,3.82234,2616.2,2615.5,6.10961]
[1724089389922,3.82234,2616.2,2615.5,3.82331]
[1724089390349,3.82234,2616.2,2615.5,7.64658]
[1724089390552,3.82221,2616.3,2615.6,3.82309]
[1724089390754,3.82209,2616.4,2615.8,3.82283]
[1724089391332,3.82209,2616.4,2615.7,0.382309]
[1724089391536,3.82209,2616.4,2615.8,3.82291]
[1724089391740,3.82209,2616.4,2615.8,3.82282]
[1724089391906,3.82175,2616.6,2615.8,3.82282]
[1724089392241,3.82175,2616.6,2615.9,4.2432529]
[1724089392242,3.822,2616.5,2615.9,4.2432529]
[1724089392435,3.82215,2616.4,2615.9,0.4205129]
[1724089392750,8.234,2616.9,2615.6,3.82312]
[1724089392951,3.82246,2616.2,2615.6,3.82312]
[1724089393303,3.82208,2616.4,2615.6,3.82308]
[1724089393573,3.82208,2616.4,2615.7,3.82295]
[1724089393714,3.82198,2616.5,2615.8,3.82278]
[1724089394160,3.82182,2616.6,2615.9,6.27408]
[1724089394364,3.82182,2616.6,2616.0,3.82262]
[1724089394566,3.8219,2616.5,2615.8,7.64559]
[1724089394859,3.8219,2616.5,2615.9,3.82276]
[1724089395059,3.8219,2616.5,2615.9,4.587314]
[1724089395469,7.64366,2616.6,2615.9,4.587314]
[1724089395676,3.82182,2616.6,2616.0,3.8226]
[1724089395878,3.82182,2616.6,2615.9,0.764554]
[1724089396170,3.82191,2616.5,2616.0,3.82254]
[1724089397621,3.82182,2616.6,2616.0,7.64509]
[1724089397971,3.82182,2616.6,2616.0,3.82254]
[1724089398640,3.82182,2616.6,2616.0,7.64509]
[1724089398839,3.82182,2616.6,2616.0,3.82254]
[1724089399059,3.82182,2616.6,2616.0,4.587081]
[1724089399267,3.82192,2616.5,2616.0,4.587081]
[1724089399617,6.20622,2616.7,2616.0,4.587081]
[1724089399821,3.82162,2616.7,2616.1,3.82241]
[1724089400065,7.64335,2616.7,2616.1,3.85923229]
[1724089400268,3.82176,2616.6,2616.1,0.03682229]
[1724089400423,3.82176,2616.6,2616.1,0.49920862]
[1724089402130,3.82176,2616.6,2616.1,4.32166862]
[1724089402481,3.82176,2616.6,2616.1,4.32161862]
[1724089403469,8.19306,2616.8,2616.2,3.82231]
[1724089403683,3.82177,2616.6,2616.2,0.03676527]
[1724089404465,4.37154,2616.8,2616.2,0.03676527]
[1724089404712,3.82186,2616.6,2616.2,0.03676527]
[1724089404928,3.82186,2616.6,2616.0,3.82253]
[1724089405138,3.8219,2616.5,2616.3,0.0367526]
[1724089405336,3.8219,2616.5,2616.0,3.82253]
[1724089405571,3.8219,2616.5,2616.4,0.0367526]
[1724089405759,3.82186,2616.6,2616.1,3.82243]
[1724089406073,3.82186,2616.6,2616.2,0.03680328]
[1724089406480,3.82186,2616.6,2616.2,3.85913328]
[1724089407034,3.82162,2616.7,2616.2,3.85913328]
[1724089407479,0.79610044,2616.7,2616.3,6.11577]
[1724089407784,3.82181,2616.6,2616.1,3.82246]
[1724089407960,3.82181,2616.6,2616.4,0.03680328]
[1724089408132,4.84017411,2616.6,2616.1,3.82246]
[1724089408519,4.62039797,2616.6,2616.1,3.82246]
[1724089408650,4.62039797,2616.6,2616.2,0.0367146]
[1724089408827,4.62039797,2616.6,2616.2,3.8590346]
[1724089409034,3.82181,2616.6,2616.2,3.8590346]
[1724089409535,4.62020797,2616.7,2616.2,3.8589546]
[1724089409738,0.79858797,2616.6,2616.2,3.8589546]
[1724089410363,0.79858797,2616.5,2616.2,3.8589546]
[1724089410773,0.79858797,2616.6,2616.2,3.8589546]
[1724089411140,0.79858797,2616.6,2616.2,8.44935006]
[1724089411349,0.79858797,2616.6,2616.2,4.62710006]
[1724089411544,0.79858797,2616.5,2616.2,4.62710006]
[1724089411734,0.79858797,2616.5,2616.2,8.44936006]
[1724089412086,5.01577066,2616.7,2616.2,8.44936006]
[1724089412087,0.79858797,2616.6,2616.2,4.62710006]
[1724089412629,0.79858797,2616.6,2616.3,3.82218]
[1724089412943,0.79858797,2616.5,2616.4,0.03665127]
[1724089413158,0.79858797,2616.5,2616.2,4.59041546]
[1724089413336,0.79858797,2616.5,2616.4,0.03665127]
[1724089413567,0.79858797,2616.5,2616.3,3.82215]
[1724089413880,0.79858797,2616.5,2616.4,0.03665127]
[1724089414766,1.19415066,2616.5,2616.2,3.82232]
[1724089414950,0.79919557,2616.4,2616.2,3.82232]
[1724089415359,0.79919557,2616.5,2616.2,3.82232]
[1724089415574,0.79919557,2616.4,2616.3,3.82211]
[1724089415774,0.79919557,2616.4,2616.2,4.586806]
[1724089415775,0.79919557,2616.4,2616.2,8.409056]
[1724089416081,0.79919557,2616.5,2616.3,3.8221]
[1724089416752,0.79919557,2616.5,2616.2,3.82233]
[1724089416952,0.79919557,2616.4,2616.2,3.82233]
[1724089418441,0.79919557,2616.4,2616.3,3.82219]
[1724089419053,0.79919557,2616.5,2616.3,3.82219]
[1724089419257,0.79919557,2616.5,2616.3,4.586642]
[1724089419685,0.79919557,2616.5,2616.3,3.82219]
[1724089420095,0.79919557,2616.4,2615.8,3.8229]
[1724089420398,0.79919557,2616.4,2615.8,3.82284]
[1724089420399,0.79941392,2616.1,2615.8,3.82284]
[1724089420687,0.79941392,2616.0,2615.7,3.82295]
[1724089420842,0.79941392,2616.0,2615.5,6.23257]
[1724089421041,0.79941392,2616.0,2615.9,3.82277]
[1724089421476,1.19912088,2616.1,2615.9,3.82277]
[1724089421657,0.79986799,2616.0,2615.9,7.64554]
[1724089421872,0.79986799,2616.1,2616.0,3.82262]
[1724089422051,1.59882784,2616.3,2616.2,3.82233]
[1724089422052,0.79986799,2616.3,2616.2,3.82233]
[1724089422577,1.19912088,2616.4,2616.2,3.82233]
[1724089422747,1.19912088,2616.4,2616.3,3.82219]
[1724089423105,1.59882784,2616.5,2616.2,3.82229]
[1724089423301,1.20033511,2616.3,2616.2,3.82229]
[1724089424350,1.59882784,2616.4,2616.2,7.64454]
[1724089424551,1.59882784,2616.4,2616.2,7.64451]
[1724089424792,1.20138515,2616.3,2616.2,7.64451]
[1724089424991,1.20138515,2616.3,2616.2,4.586701]
[1724089425148,1.20138515,2616.3,2616.2,3.82225]
[1724089425691,1.20142001,2616.3,2616.2,3.82225]
[1724089426057,1.59882784,2616.3,2616.1,3.82242]
[1724089426276,1.59882784,2616.2,2615.9,3.82266]
[1724089426500,0.801019,2616.0,2615.9,7.64543]
[1724089427146,0.801019,2616.0,2615.9,8.409973]
[1724089427418,0.801019,2616.0,2615.9,7.64543]
[1724089427910,0.801019,2616.1,2616.0,3.82262]
[1724089428323,1.20152851,2616.2,2616.1,3.82248]
[1724089428628,1.20207976,2616.2,2616.1,3.82248]
[1724089428782,1.59882784,2616.2,2616.0,3.82256]
[1724089428976,1.20213213,2616.1,2616.0,3.82256]
[1724089429177,2.00254853,2616.3,2616.1,3.82248]
[1724089429178,1.59882784,2616.3,2616.1,3.82248]
[1724089429567,1.20225486,2616.2,2616.1,3.82248]
[1724089429767,1.59882784,2616.3,2616.1,3.82248]
[1724089430015,1.59882784,2616.2,2616.1,3.85908692]
[1724089430885,2.00254853,2616.3,2616.1,3.85908692]
[1724089431204,1.6035157,2616.2,2616.1,3.85908692]
[1724089434086,1.60448084,2616.2,2616.1,3.85908692]
[1724089434476,2.00439462,2616.3,2616.1,3.85908692]
[1724089434700,2.40527355,2616.5,2616.1,0.03660692]
[1724089434701,0.20043946,2616.2,2616.1,0.03660692]
[1724089434904,2.00635444,2616.2,2616.1,0.03660692]
[1724089435689,2.00635444,2616.2,2616.1,3.85908692]
[1724089435931,2.9187,2616.2,2616.1,0.03660692]
[1724089436095,6.74103,2616.2,2615.4,3.82343]
[1724089436299,2.0069324,2615.5,2615.4,3.82343]
[1724089436918,2.00669579,2615.5,2615.1,3.82385]
[1724089437138,2.00669579,2615.5,2614.9,3.82414]
[1724089437139,1.60537328,2615.2,2614.9,3.82414]
[1724089437291,1.60545218,2615.1,2615.0,3.82402]
[1724089437475,1.60545218,2615.2,2615.0,3.82402]
[1724089438183,1.60545218,2615.1,2615.0,3.82402]
[1724089438519,1.2028559,2615.1,2615.0,3.82402]
[1724089438726,1.2028559,2615.1,2615.0,8.412934]
[1724089438937,0.80188988,2615.1,2615.0,8.413004]
[1724089439132,0.80188988,2615.2,2615.1,7.64788]
[1724089439288,1.2028559,2615.3,2615.2,3.82379]
[1724089440097,0.80166389,2615.3,2615.2,11.47137]
[1724089440297,0.80166389,2615.4,2615.3,3.82365]
[1724089440527,1.2028559,2615.4,2615.3,3.82365]
[1724089440840,1.2028559,2615.5,2615.3,3.82365]
[1724089441210,0.80157157,2615.4,2615.3,3.82365]
[1724089441397,1.2028559,2615.5,2615.3,3.82365]
[1724089441601,1.2028559,2615.5,2615.4,3.8235]
[1724089441783,1.2028559,2615.5,2615.3,3.82357]
[1724089442197,1.2028559,2615.5,2615.4,3.8235]
[1724089442442,1.2028559,2615.5,2615.2,3.82367]
[1724089442585,0.80131953,2615.4,2615.2,3.82378]
[1724089442988,0.80131953,2615.3,2615.2,3.82378]
[1724089444088,0.80131953,2615.3,2615.1,3.82394]
[1724089444286,0.80131953,2615.2,2615.1,3.82386]
[1724089444691,1.2028559,2615.4,2615.0,3.82409]
[1724089444692,0.80131953,2615.3,2615.2,3.82379]
[1724089444891,1.2028559,2615.4,2615.2,3.82379]
[1724089445216,5.82637882,2615.7,2615.2,3.82379]
[1724089445217,1.2028559,2615.6,2615.5,3.82336]
[1724089445624,1.2028559,2615.7,2615.6,3.82321]
[1724089445925,4.41699882,2616.0,2615.6,3.82321]
[1724089445926,1.2028559,2615.9,2615.7,3.82306]
[1724089446342,1.2028559,2615.9,2615.4,3.82338]
[1724089446343,1.2028559,2615.8,2615.6,3.82319]
[1724089446492,1.2028559,2615.8,2615.5,3.82334]
[1724089446929,1.2028559,2615.8,2615.6,3.82315]
[1724089447135,1.2028559,2615.9,2615.6,3.82315]
[1724089447332,1.2028559,2615.8,2615.6,3.82315]
[1724089447552,1.2028559,2615.9,2615.6,3.82315]
[1724089448665,1.2028559,2615.9,2615.8,3.82292]
[1724089448866,1.2028559,2616.0,2615.9,3.82277]
[1724089449015,1.60545218,2616.1,2615.8,3.82292]
[1724089449217,1.20121398,2616.0,2615.8,3.82292]
[1724089449432,1.60545218,2616.1,2615.8,3.82292]
[1724089449433,1.20121398,2615.9,2615.8,3.82292]
[1724089449755,1.20121398,2616.1,2615.9,3.82277]
[1724089450109,1.60545218,2616.2,2615.9,3.82277]
[1724089450110,1.20121398,2616.2,2616.0,3.82262]
[1724089450310,1.20121398,2616.2,2616.1,3.82248]
[1724089450854,1.20121398,2616.3,2616.1,3.82248]
[1724089451256,1.20121398,2616.2,2616.1,3.82248]
[1724089451459,1.20121398,2616.2,2615.7,3.82296]
[1724089451460,5.42765218,2616.3,2615.7,3.82295]
[1724089451664,1.20113448,2616.1,2615.8,3.82284]
[1724089452016,1.20113448,2616.1,2615.9,3.82276]
[1724089452761,1.20113448,2616.1,2615.9,3.8227]
[1724089453112,1.20113448,2616.1,2615.4,3.82348]
[1724089453113,1.20113448,2616.0,2615.8,3.8229]
[1724089453852,3.53813448,2616.1,2615.8,3.82285]
[1724089454166,1.20113448,2616.0,2615.8,3.82285]
[1724089454454,1.20113448,2616.0,2615.8,3.82284]
[1724089456068,1.20113448,2616.0,2615.6,3.82312]
[1724089456368,1.20113448,2615.9,2615.6,3.82312]
[1724089456518,1.20113448,2615.8,2615.6,3.82312]
[1724089456871,1.20113448,2615.7,2615.5,3.82335]
[1724089459391,1.20113448,2615.7,2615.3,3.82357]
[1724089459711,1.20113448,2615.5,2615.1,3.82387]
[1724089459911,1.20113448,2615.2,2615.0,3.82395]
[1724089460207,1.20113448,2615.2,2615.0,3.82409]
[1724089460764,1.20113448,2615.2,2614.7,3.945]
[1724089460765,1.20113448,2615.2,2614.8,3.82429]
[1724089461071,1.20113448,2615.1,2614.7,7.76943]
[1724089461268,8.16698915,2615.1,2614.6,3.82466]
[1724089461466,1.20113448,2614.9,2614.4,7.76992]
[1724089461667,1.20113448,2614.9,2614.4,11.59481]
[1724089461668,1.20113448,2614.8,2614.4,11.59481]
[1724089462009,5.02543448,2614.9,2614.4,7.76996]
[1724089462154,1.20113448,2614.8,2614.4,7.76996]
[1724089462356,5.02543448,2614.9,2614.4,11.59479]
[1724089462555,5.02543448,2614.9,2614.4,11.59478]
[1724089462798,5.02543448,2614.9,2614.4,7.76989]